Workbook

Sheet Sheet1
A1: Seven 7-T coils
A3: L (cm) | B3: Bx (T) | D3: 100 nm particle
A4: -0.1 | B4: 0.40089923 | C4: dB/dx | D4: Force | E4: Force/weight | O4: =A4/100 -> -0.001
A5: -0.098000002 | B5: 0.40286475 | C5: =(B5-B4)/ABS(A5-A4) -> 0.9827609828 | D5: =B5*C5*0.0000000000000012 -> 4.751037092e-16 | E5: =D5/weight -> 10.39275728 | O5: =A5/100 -> -0.00098000002
A6: -0.096000004 | B6: 0.40484402 | C6: =(B6-B5)/ABS(A6-A5) -> 0.9896359896 | D6: =B6*C6*0.0000000000000012 -> 4.807778549e-16 | E6: 10.51687759 | O6: -0.00096000004
A7: -0.093999996 | B7: 0.40692663 | C7: 1.041300835 | D7: 5.084796474e-16 | E7: 11.12284635 | O7: -0.00093999996
A8: -0.091999998 | B8: 0.40903795 | C8: 1.055661056 | D8: 5.181665209e-16 | E8: 11.33474393 | O8: -0.00091999998
A9: -0.09 | B9: 0.41121748 | C9: 1.08976609 | D9: 5.377570383e-16 | E9: 11.76328087 | O9: -0.0009
A10: -0.088000002 | B10: 0.41335654 | C10: 1.06953107 | D10: 5.305171948e-16 | E10: 11.60491138 | O10: -0.00088000002
A11: -0.086000004 | B11: 0.41546035 | C11: 1.051906052 | D11: 5.244303078e-16 | E11: 11.47176247 | O11: -0.00086000004
A12: -0.083999996 | B12: 0.41759589 | C12: 1.067765729 | D12: 5.350734959e-16 | E12: 11.70457915 | O12: -0.00083999996
A13: -0.081999998 | B13: 0.41974592 | C13: 1.075016075 | D13: 5.414803337e-16 | E13: 11.84472689 | O13: -0.00081999998
A14: -0.08 | B14: 0.42193189 | C14: 1.092986093 | D14: 5.533988255e-16 | E14: 12.10544048 | O14: -0.0008
A15: -0.078000002 | B15: 0.42423448 | C15: 1.151296151 | D15: 5.861034289e-16 | E15: 12.82084429 | O15: -0.00078000002
A16: -0.075999999 | B16: 0.42661095 | C16: 1.188233218 | D16: 6.082959622e-16 | E16: 13.30629959 | O16: -0.00075999999
A17: -0.074000001 | B17: 0.42881635 | C17: 1.102701103 | D17: 5.674275144e-16 | E17: 12.41231402 | O17: -0.00074000001
A18: -0.071999998 | B18: 0.43098539 | C18: 1.084518373 | D18: 5.608938889e-16 | E18: 12.26939284 | O18: -0.00071999998
A19: -0.07 | B19: 0.43314469 | C19: 1.07965108 | D19: 5.611741586e-16 | E19: 12.27552366 | O19: -0.0007
A20: -0.068000002 | B20: 0.43546292 | C20: 1.159116159 | D20: 6.057025287e-16 | E20: 13.24956898 | O20: -0.00068000002
A21: -0.065999999 | B21: 0.43771663 | C21: 1.12685331 | D21: 5.918909199e-16 | E21: 12.947444 | O21: -0.00065999999
A22: -0.064000001 | B22: 0.43995252 | C22: 1.117946118 | D22: 5.902118542e-16 | E22: 12.91071492 | O22: -0.00064000001
A23: -0.061999998 | B23: 0.44222039 | C23: 1.133933299 | D23: 6.017381109e-16 | E23: 13.16284848 | O23: -0.00061999998
A24: -0.06 | B24: 0.44478181 | C24: 1.280711281 | D24: 6.835644978e-16 | E24: 14.95277721 | O24: -0.0006
A25: -0.057999997 | B25: 0.44705886 | C25: 1.138523292 | D25: 6.107843101e-16 | E25: 13.36073149 | O25: -0.00057999997
A26: -0.055999999 | B26: 0.44924539 | C26: 1.093266093 | D26: 5.893737029e-16 | E26: 12.8923806 | O26: -0.00055999999
A27: -0.054000001 | B27: 0.45150092 | C27: 1.127766128 | D27: 6.110249331e-16 | E27: 13.36599505 | O27: -0.00054000001
A28: -0.051999998 | B28: 0.45388421 | C28: 1.191643213 | D28: 6.490416457e-16 | E28: 14.19759972 | O28: -0.00051999998
A29: -0.05 | B29: 0.45627165 | C29: 1.193721194 | D29: 6.535933664e-16 | E29: 14.29716731 | O29: -0.0005
A30: -0.047999997 | B30: 0.4586814 | C30: 1.204873193 | D30: 6.631835074e-16 | E30: 14.50694889 | O30: -0.00047999997
A31: -0.045999999 | B31: 0.46110365 | C31: 1.211126211 | D31: 6.701456599e-16 | E31: 14.65924398 | O31: -0.00045999999
A32: -0.044000001 | B32: 0.46348777 | C32: 1.192061192 | D32: 6.630069403e-16 | E32: 14.50308654 | O32: -0.00044000001
A33: -0.041999998 | B33: 0.46586493 | C33: 1.188578217 | D33: 6.644602895e-16 | E33: 14.53487813 | O33: -0.00041999998
A34: -0.04 | B34: 0.46828452 | C34: 1.20979621 | D34: 6.798346049e-16 | E34: 14.87118687 | O34: -0.0004
A35: -0.038 | B35: 0.47075263 | C35: 1.234055 | D35: 6.971215642e-16 | E35: 15.24933414 | O35: -0.00038
A36: -0.035999999 | B36: 0.47319198 | C36: 1.21967439 | D36: 6.925681676e-16 | E36: 15.1497299 | O36: -0.00035999999
A37: -0.033999999 | B37: 0.4755798 | C37: 1.19391 | D37: 6.813593748e-16 | E37: 14.90454077 | O37: -0.00033999999
A38: -0.031999998 | B38: 0.47812396 | C38: 1.272079364 | D38: 7.298539475e-16 | E38: 15.96534563 | O38: -0.00031999998
A39: -0.03 | B39: 0.48072454 | C39: 1.3002913 | D39: 7.500983246e-16 | E39: 16.40818557 | O39: -0.0003
A40: -0.028 | B40: 0.48313677 | C40: 1.206115 | D40: 6.992622064e-16 | E40: 15.29616008 | O40: -0.00028
A41: -0.025999999 | B41: 0.48555905 | C41: 1.211139394 | D41: 7.056956325e-16 | E41: 15.43688943 | O41: -0.00025999999
A42: -0.023999999 | B42: 0.48807675 | C42: 1.25885 | D42: 7.372985001e-16 | E42: 16.12819308 | O42: -0.00023999999
A43: -0.021999998 | B43: 0.49057969 | C43: 1.251469374 | D43: 7.367345492e-16 | E43: 16.11585682 | O43: -0.00021999998
A44: -0.019999999 | B44: 0.49311259 | C44: 1.266450633 | D44: 7.494033022e-16 | E44: 16.39298216 | O44: -0.00019999999
A45: -0.017999998 | B45: 0.4957113 | C45: 1.29935435 | D45: 7.72925561e-16 | E45: 16.90752482 | O45: -0.00017999998
A46: -0.015999999 | B46: 0.49830464 | C46: 1.296670648 | D46: 7.753644007e-16 | E46: 16.96087373 | O46: -0.00015999999
A47: -0.013999999 | B47: 0.50088567 | C47: 1.290515 | D47: 7.756805645e-16 | E47: 16.96778973 | O47: -0.00013999999
A48: -0.011999998 | B48: 0.50347149 | C48: 1.292909354 | D48: 7.811315984e-16 | E48: 17.08702953 | O48: -0.00011999998
A49: -0.0099999988 | B49: 0.50614345 | C49: 1.335980534 | D49: 8.114373562e-16 | E49: 17.74995928 | O49: -9.9999988e-05
A50: -0.0079999983 | B50: 0.50865519 | C50: 1.255869686 | D50: 7.665655605e-16 | E50: 16.76840163 | O50: -7.9999983e-05
A51: -0.0059999985 | B51: 0.51129085 | C51: 1.317830132 | D51: 8.085533859e-16 | E51: 17.68687326 | O51: -5.9999985e-05
A52: -0.0039999986 | B52: 0.51395184 | C52: 1.330495067 | D52: 8.205724651e-16 | E52: 17.94978717 | O52: -3.9999986e-05
A53: -0.0019999985 | B53: 0.51657778 | C53: 1.312969934 | D53: 8.139013127e-16 | E53: 17.80385762 | O53: -1.9999985e-05
A54: 0 | B54: 0.51928651 | C54: 1.354366016 | D54: 8.439648019e-16 | E54: 18.46148782 | O54: 0
A55: 0.0020000015 | B55: 0.52192074 | C55: 1.317114012 | D55: 8.249149439e-16 | E55: 18.04477764 | O55: 2.0000015e-05
A56: 0.0040000015 | B56: 0.52463049 | C56: 1.354875 | D56: 8.529704822e-16 | E56: 18.65848449 | O56: 4.0000015e-05
A57: 0.0060000014 | B57: 0.52732956 | C57: 1.349535067 | D57: 8.5397968e-16 | E57: 18.68056041 | O57: 6.0000014e-05
A58: 0.0080000019 | B58: 0.52998012 | C58: 1.325279669 | D58: 8.428462534e-16 | E58: 18.43701989 | O58: 8.0000019e-05
A59: 0.010000001 | B59: 0.53273845 | C59: 1.379165621 | D59: 8.81681466e-16 | E59: 19.28652902 | O59: 0.00010000001
A60: 0.012000002 | B60: 0.53546858 | C60: 1.365064317 | D60: 8.77138862e-16 | E60: 19.18716087 | O60: 0.00012000002
A61: 0.014000002 | B61: 0.53821027 | C61: 1.370845 | D61: 8.853634291e-16 | E61: 19.36707091 | O61: 0.00014000002
A62: 0.016000001 | B62: 0.54096437 | C62: 1.377050689 | D62: 8.939224298e-16 | E62: 19.55429659 | O62: 0.00016000001
A63: 0.018000002 | B63: 0.54376876 | C63: 1.402194299 | D63: 9.149633462e-16 | E63: 20.0145606 | O63: 0.00018000002
A64: 0.020000002 | B64: 0.54643852 | C64: 1.33488 | D64: 8.753158219e-16 | E64: 19.14728239 | O64: 0.00020000002
A65: 0.022000003 | B65: 0.54923487 | C65: 1.398174301 | D65: 9.215112965e-16 | E65: 20.15779513 | O65: 0.00022000003
A66: 0.024000001 | B66: 0.55211794 | C66: 1.441536442 | D66: 9.550777566e-16 | E66: 20.89205182 | O66: 0.00024000001
A67: 0.026000001 | B67: 0.55487406 | C67: 1.37806 | D67: 9.175796965e-16 | E67: 20.07179251 | O67: 0.00026000001
A68: 0.028000002 | B68: 0.55769557 | C68: 1.410754295 | D68: 9.441257046e-16 | E68: 20.65247882 | O68: 0.00028000002
A69: 0.030000002 | B69: 0.56057471 | C69: 1.43957 | D69: 9.683838423e-16 | E69: =D69/weight -> 21.18311862 | O69: =A69/100 -> 0.00030000002
A70: 0.032000003 | B70: 0.56342381 | C70: =(B70-B69)/ABS(A70-A69) -> 1.424549288 | D70: =B70*C70*0.0000000000000012 -> 9.631499847e-16 | E70: 21.06862949 | O70: 0.00032000003
A71: 0.034000001 | B71: 0.56627703 | C71: 1.426611427 | D71: 9.69428738e-16 | E71: 21.20597541 | O71: 0.00034000001
A72: 0.036000001 | B72: 0.5691247 | C72: 1.423835 | D72: 9.724076007e-16 | E72: 21.27113718 | O72: 0.00036000001
A73: 0.038000002 | B73: 0.57199705 | C73: 1.436174282 | D73: 9.85784943e-16 | E73: 21.56376271 | O73: 0.00038000002
A74: 0.04 | B74: 0.57464677 | C74: 1.324861325 | D74: 9.135927372e-16 | E74: 19.98457892 | O74: 0.0004
A75: 0.042000003 | B75: 0.57783884 | C75: 1.596032606 | D75: 1.106699556e-15 | E75: 24.20873515 | O75: 0.00042000003
A76: 0.044000001 | B76: 0.58074659 | C76: 1.453876454 | D76: 1.013200551e-15 | E76: 22.16347127 | O76: 0.00044000001
A77: 0.046000004 | B77: 0.58365309 | C77: 1.45324782 | D77: 1.017831097e-15 | E77: 22.26476312 | O77: 0.00046000004
A78: 0.048000002 | B78: 0.58657223 | C78: 1.45957146 | D78: 1.027372903e-15 | E78: 22.4734874 | O78: 0.00048000002
A79: 0.05 | B79: 0.5895263 | C79: 1.477036477 | D79: 1.044902219e-15 | E79: 22.85693615 | O79: 0.0005
A80: 0.052000003 | B80: 0.59244657 | C80: 1.46013281 | D80: 1.03806081e-15 | E80: 22.70728229 | O80: 0.00052000003
A81: 0.054000001 | B81: 0.59536374 | C81: 1.458586459 | D81: 1.042067387e-15 | E81: 22.79492501 | O81: 0.00054000001
A82: 0.056000004 | B82: 0.59829366 | C82: 1.464957803 | D82: 1.051769959e-15 | E82: 23.00716598 | O82: 0.00056000004
A83: 0.058000002 | B83: 0.60122365 | C83: 1.464996465 | D83: 1.056948626e-15 | E83: 23.12044785 | O83: 0.00058000002
A84: 0.06 | B84: 0.6041888 | C84: 1.482576483 | D84: 1.074907327e-15 | E84: 23.51328928 | O84: 0.0006
A85: 0.062000003 | B85: 0.60724717 | C85: 1.529182706 | D85: 1.114310245e-15 | E85: 24.3752168 | O85: 0.00062000003
A86: 0.064000001 | B86: 0.61042798 | C86: 1.59040659 | D86: 1.164994419e-15 | E86: 25.48391856 | O86: 0.00064000001
A87: 0.066000004 | B87: 0.61332589 | C87: 1.448952827 | D87: 1.066416338e-15 | E87: 23.32755134 | O87: 0.00066000004
A88: 0.068000002 | B88: 0.61623418 | C88: 1.454146454 | D88: 1.075313697e-15 | E88: 23.52217851 | O88: 0.00068000002
A89: 0.070000005 | B89: 0.61932963 | C89: 1.547722678 | D89: 1.150260617e-15 | E89: 25.16162086 | O89: 0.00070000005
A90: 0.072000003 | B90: 0.62252605 | C90: 1.598211598 | D90: 1.193914024e-15 | E90: 26.11652662 | O90: 0.00072000003
A91: 0.074000001 | B91: 0.6256972 | C91: 1.585576586 | D91: 1.190508996e-15 | E91: 26.04204261 | O91: 0.00074000001
A92: 0.076000004 | B92: 0.62883896 | C92: 1.570877644 | D92: 1.185394876e-15 | E92: 25.93017271 | O92: 0.00076000004
A93: 0.078000002 | B93: 0.63182306 | C93: 1.492051492 | D93: 1.131255047e-15 | E93: 24.74587949 | O93: 0.00078000002
A94: 0.08 | B94: 0.63485169 | C94: 1.514316514 | D94: 1.153639678e-15 | E94: 25.23553686 | O94: 0.0008
A95: 0.081999998 | B95: 0.63792884 | C95: 1.538576539 | D95: 1.177802816e-15 | E95: 25.76409856 | O95: 0.00081999998
A96: 0.084000006 | B96: 0.64084661 | C96: 1.458879164 | D96: 1.12190132e-15 | E96: 24.54126939 | O96: 0.00084000006
A97: 0.086000004 | B97: 0.64381331 | C97: 1.483351483 | D97: 1.146001714e-15 | E97: 25.06845859 | O97: 0.00086000004
A98: 0.088000002 | B98: 0.64703804 | C98: 1.612366612 | D98: 1.251915039e-15 | E98: 27.38528218 | O98: 0.00088000002
A99: 0.09 | B99: 0.65022933 | C99: 1.595646596 | D99: 1.24504346e-15 | E99: 27.23496836 | O99: 0.0009
A100: 0.092000008 | B100: 0.65338761 | C100: 1.579133683 | D100: 1.23814366e-15 | E100: 27.08403721 | O100: 0.00092000008
A101: 0.094000006 | B101: 0.65656894 | C101: 1.590666591 | D101: 1.253258733e-15 | E101: 27.41467509 | O101: 0.00094000006
A102: 0.096000004 | B102: 0.65975887 | C102: 1.594966595 | D102: 1.26275203e-15 | E102: 27.62233824 | O102: 0.00096000004
A103: 0.098000002 | B103: 0.66293716 | C103: 1.589146589 | D103: 1.264205192e-15 | E103: 27.65412574 | O103: 0.00098000002
A104: 0.1 | B104: 0.66611415 | C104: 1.588496588 | D104: 1.269744066e-15 | E104: 27.77528702 | O104: 0.001
A105: 0.10200001 | B105: 0.66898906 | C105: 1.437447813 | D105: 1.153964233e-15 | E105: 25.24263641 | O105: 0.0010200001
A106: 0.10400001 | B106: 0.67190361 | C106: 1.457275 | D106: 1.174978e-15 | E106: 25.70230653 | O106: 0.0010400001
A107: 0.106 | B107: 0.67546976 | C107: 1.783083915 | D107: 1.445303117e-15 | E107: 31.61559089 | O107: 0.00106
A108: 0.108 | B108: 0.6789977 | C108: 1.76397 | D108: 1.437277887e-15 | E108: 31.44004129 | O108: 0.00108
A109: 0.11 | B109: 0.68219197 | C109: 1.597135 | D109: 1.307463206e-15 | E109: 28.6003824 | O109: 0.0011
A110: 0.11200001 | B110: 0.68536007 | C110: 1.58404208 | D110: 1.302767029e-15 | E110: 28.49765486 | O110: 0.0011200001
A111: 0.11400001 | B111: 0.68836212 | C111: 1.501025 | D111: 1.239898501e-15 | E111: 27.12242386 | O111: 0.0011400001
A112: 0.116 | B112: 0.69141358 | C112: 1.525737629 | D112: 1.265898859e-15 | E112: 27.69117423 | O112: 0.00116
A113: 0.118 | B113: 0.69473028 | C113: 1.65835 | D113: 1.382527152e-15 | E113: 30.24238466 | O113: 0.00118
A114: 0.12 | B114: 0.69806212 | C114: 1.66592 | D114: 1.395498776e-15 | E114: 30.52613522 | O114: 0.0012
A115: 0.12200001 | B115: 0.70146984 | C115: 1.703851481 | D115: 1.434240511e-15 | E115: 31.37359954 | O115: 0.0012200001
A116: 0.12400001 | B116: 0.70484626 | C116: 1.68821 | D116: 1.427914206e-15 | E116: 31.23521343 | O116: 0.0012400001
A117: 0.126 | B117: 0.70806205 | C117: 1.60790304 | D117: 1.366194147e-15 | E117: 29.88510486 | O117: 0.00126
A118: 0.128 | B118: 0.71127295 | C118: 1.60545 | D118: 1.370295789e-15 | E118: 29.97482711 | O118: 0.00128
A119: 0.13 | B119: 0.71445584 | C119: 1.591445 | D119: 1.364420609e-15 | E119: 29.84630923 | O119: 0.0013
A120: 0.13200001 | B120: 0.7177152 | C120: 1.629671852 | D120: 1.403568311e-15 | E120: 30.70265397 | O120: 0.0013200001
A121: 0.13400001 | B121: 0.72153765 | C121: 1.911225 | D121: 1.654824954e-15 | E121: 36.19882093 | O121: 0.0013400001
A122: 0.136 | B122: 0.72527647 | C122: 1.869419347 | D122: 1.627015038e-15 | E122: 35.590487 | O122: 0.00136
A123: 0.138 | B123: 0.72804195 | C123: 1.38274 | D123: 1.208031271e-15 | E123: 26.42533735 | O123: 0.00138
A124: 0.14 | B124: 0.73082334 | C124: 1.390695 | D124: 1.219622838e-15 | E124: 26.67889954 | O124: 0.0014
A125: 0.14200001 | B125: 0.73419505 | C125: 1.685846571 | D125: 1.485288249e-15 | E125: 32.49025416 | O125: 0.0014200001
A126: 0.14400001 | B126: 0.73756671 | C126: 1.68583 | D126: 1.492094504e-15 | E126: 32.63913904 | O126: 0.0014400001
A127: 0.146 | B127: 0.74078238 | C127: 1.607843039 | D127: 1.429274152e-15 | E127: 31.26496187 | O127: 0.00146
A128: 0.148 | B128: 0.74399161 | C128: 1.604615 | D128: 1.432584117e-15 | E128: 31.3373664 | O128: 0.00148
A129: 0.15 | B129: 0.74728423 | C129: 1.64631 | D129: 1.476313801e-15 | E129: 32.29394069 | O129: 0.0015
A130: 0.15200001 | B130: 0.750588 | C130: 1.651876741 | D130: 1.487854631e-15 | E130: 32.54639303 | O130: 0.0015200001
A131: 0.15400001 | B131: 0.75393867 | C131: 1.675335 | D131: 1.51571981e-15 | E131: 33.15593583 | O131: 0.0015400001
A132: 0.156 | B132: 0.75730175 | C132: 1.681548408 | D132: 1.528127462e-15 | E132: 33.42734966 | O132: 0.00156
A133: 0.158 | B133: 0.76063716 | C133: 1.667705 | D133: 1.522222074e-15 | E133: =D133/weight -> 33.29817099 | O133: =A133/100 -> 0.00158
A134: 0.16 | B134: 0.76396006 | C134: =(B134-B133)/ABS(A134-A133) -> 1.66145 | D134: =B134*C134*0.0000000000000012 -> 1.52313773e-15 | E134: 33.3182007 | O134: 0.0016
A135: 0.16200001 | B135: 0.76723027 | C135: 1.635096825 | D135: 1.505394934e-15 | E135: 32.93008212 | O135: 0.0016200001
A136: 0.164 | B136: 0.7704609 | C136: 1.615323077 | D136: 1.493451926e-15 | E136: 32.66883225 | O136: 0.00164
A137: 0.166 | B137: 0.77372408 | C137: 1.63159 | D137: 1.514880566e-15 | E137: 33.13757761 | O137: 0.00166
A138: 0.16800001 | B138: 0.77702862 | C138: 1.652261739 | D138: 1.54062559e-15 | E138: 33.70074263 | O138: 0.0016800001
A139: 0.17 | B139: 0.78040755 | C139: 1.689473447 | D139: 1.582173401e-15 | E139: 34.60958905 | O139: 0.0017
A140: 0.17200001 | B140: 0.78396201 | C140: 1.777221114 | D140: 1.671928604e-15 | E140: 36.57295836 | O140: 0.0017200001
A141: 0.174 | B141: 0.78749663 | C141: 1.767318837 | D141: 1.670109154e-15 | E141: 36.53315841 | O141: 0.00174
A142: 0.176 | B142: 0.79091102 | C142: 1.707195 | D142: 1.620287207e-15 | E142: 35.44331762 | O142: 0.00176
A143: 0.17800001 | B143: 0.79432541 | C143: 1.707186464 | D143: 1.627273906e-15 | E143: 35.59614965 | O143: 0.0017800001
A144: 0.18 | B144: 0.79754758 | C144: 1.611093055 | D144: 1.541908041e-15 | E144: 33.72879587 | O144: 0.0018
A145: 0.18200001 | B145: 0.80076432 | C145: 1.608361958 | D145: 1.545502644e-15 | E145: 33.80742677 | O145: 0.0018200001
A146: 0.184 | B146: 0.80404228 | C146: 1.638988195 | D146: 1.581378966e-15 | E146: 34.59221103 | O146: 0.00184
A147: 0.186 | B147: 0.80733657 | C147: 1.647145 | D147: 1.595760474e-15 | E147: 34.90680237 | O147: 0.00186
A148: 0.18800001 | B148: 0.81061804 | C148: 1.640726796 | D148: 1.596003288e-15 | E148: 34.91211386 | O148: 0.0018800001
A149: 0.19 | B149: 0.8138907 | C149: 1.636338182 | D149: 1.598160514e-15 | E149: 34.95930256 | O149: 0.0019
A150: 0.19200001 | B150: 0.81724185 | C150: 1.675566622 | D150: 1.643211799e-15 | E150: 35.9447865 | O150: 0.0019200001
A151: 0.194 | B151: 0.82071918 | C151: 1.738673693 | D151: 1.712355417e-15 | E151: 37.45728331 | O151: 0.00194
A152: 0.196 | B152: 0.82416981 | C152: 1.725315 | D152: 1.706343043e-15 | E152: 37.32576434 | O152: 0.00196
A153: 0.19800001 | B153: 0.82748073 | C153: 1.655451723 | D153: 1.64382528e-15 | E153: 35.95820622 | O153: 0.0019800001
A154: 0.2 | B154: 0.83079159 | C154: 1.655438277 | D154: 1.650389038e-15 | E154: 36.10178654 | O154: 0.002
A155: 0.20200001 | B155: 0.83393627 | C155: 1.572332138 | D155: 1.573469758e-15 | E155: 34.41919937 | O155: 0.0020200001
A156: 0.204 | B156: 0.83706713 | C156: 1.565437827 | D156: 1.572451859e-15 | E156: 34.39693312 | O156: 0.00204
A157: 0.206 | B157: 0.8403278 | C157: 1.630335 | D157: 1.644018989e-15 | E157: 35.96244354 | O157: 0.00206
A158: 0.20800001 | B158: 0.84365171 | C158: 1.66194669 | D158: 1.682525001e-15 | E158: 36.8047515 | O158: 0.0020800001
A159: 0.21 | B159: 0.84694242 | C159: 1.645363227 | D159: 1.672233496e-15 | E159: 36.57962778 | O159: 0.0021
A160: 0.21200001 | B160: 0.85018504 | C160: 1.621301893 | D160: 1.654087938e-15 | E160: 36.18269892 | O160: 0.0021200001
A161: 0.214 | B161: 0.85339946 | C161: 1.607218036 | D161: 1.645918805e-15 | E161: 36.00400147 | O161: 0.00214
A162: 0.216 | B162: 0.85642439 | C162: 1.512465 | D162: 1.554374298e-15 | E162: 34.00149166 | O162: 0.00216
A163: 0.21800001 | B163: 0.85944927 | C163: 1.512432438 | D163: 1.559830746e-15 | E163: 34.12084988 | O163: 0.0021800001
A164: 0.22 | B164: 0.86297578 | C164: 1.763263816 | D164: 1.825984761e-15 | E164: 39.94289258 | O164: 0.0022
A165: 0.22200001 | B165: 0.86659998 | C165: 1.81209094 | D165: 1.884429566e-15 | E165: 41.22135593 | O165: 0.0022200001
A166: 0.224 | B166: 0.87015116 | C166: 1.775598878 | D166: 1.854047308e-15 | E166: 40.55675275 | O166: 0.00224
A167: 0.226 | B167: 0.87363768 | C167: 1.74326 | D167: 1.827573146e-15 | E167: 39.97763806 | O167: 0.00226
A168: 0.22800001 | B168: 0.87704748 | C168: 1.704891476 | D168: 1.794324927e-15 | E168: 39.2503428 | O168: 0.0022800001
A169: 0.23 | B169: 0.88016826 | C169: 1.560397802 | D169: 1.648095142e-15 | E169: 36.05160822 | O169: 0.0023
A170: 0.23200001 | B170: 0.88328898 | C170: 1.560352198 | D170: 1.653890282e-15 | E170: 36.17837525 | O170: 0.0023200001
A171: 0.234 | B171: 0.88637853 | C171: 1.544782724 | D171: 1.643114688e-15 | E171: 35.94266222 | O171: 0.00234
A172: 0.236 | B172: 0.88946354 | C172: 1.542505 | D172: 1.646402349e-15 | E172: 36.01457887 | O172: 0.00236
A173: 0.23800001 | B173: 0.89258426 | C173: 1.560352198 | D173: 1.671294975e-15 | E173: 36.5590979 | O173: 0.0023800001
A174: 0.24 | B174: 0.89573723 | C174: 1.576492882 | D174: 1.694548041e-15 | E174: 37.06775206 | O174: 0.0024
A175: 0.24200001 | B175: 0.89889032 | C175: 1.576537117 | D175: 1.700560745e-15 | E175: 37.19927822 | O175: 0.0024200001
A176: 0.244 | B176: 0.90204436 | C176: 1.577027885 | D176: 1.707058931e-15 | E176: 37.34142419 | O176: 0.00244
A177: 0.246 | B177: 0.90519845 | C177: 1.577045 | D177: 1.713046427e-15 | E177: 37.47239895 | O177: 0.00246
A178: 0.24800001 | B178: 0.90851635 | C178: 1.658941705 | D178: 1.808610796e-15 | E178: 39.56284208 | O178: 0.0024800001
A179: 0.25 | B179: 0.91187972 | C179: 1.681693408 | D179: 1.840202537e-15 | E179: 40.25390236 | O179: 0.0025
A180: 0.25200001 | B180: 0.91510576 | C180: 1.613011935 | D180: 1.771291815e-15 | E180: 38.74650009 | O180: 0.0025200001
A181: 0.254 | B181: 0.91811699 | C181: 1.505622528 | D181: 1.658805148e-15 | E181: 36.28588654 | O181: 0.00254
A182: 0.25603577 | B182: 0.9211821 | C182: 1.505626864 | D182: 1.664347819e-15 | E182: 36.40713087 | O182: 0.0025603577
A183: 0.25800001 | B183: 0.92429549 | C183: 1.585035434 | D183: 1.758049323e-15 | E183: 38.45682438 | O183: 0.0025800001
A184: 0.26 | B184: 0.92746556 | C184: 1.585042925 | D184: 1.764087269e-15 | E184: 38.58890271 | O184: 0.0026
A185: 0.26200001 | B185: 0.93064028 | C185: 1.587352063 | D185: 1.772704522e-15 | E185: 38.77740265 | O185: 0.0026200001
A186: 0.264 | B186: 0.9338187 | C186: 1.589217946 | D186: 1.780849724e-15 | E186: 38.9555766 | O186: 0.00264
A187: 0.266 | B187: 0.93699956 | C187: 1.59043 | D187: 1.788278652e-15 | E187: 39.11808228 | O187: 0.00266
A188: 0.26800001 | B188: 0.94019789 | C188: 1.599157004 | D188: 1.804228849e-15 | E188: 39.46698826 | O188: 0.0026800001
A189: 0.27 | B189: 0.94339615 | C189: 1.599137996 | D189: 1.810344754e-15 | E189: 39.60077192 | O189: 0.0027
A190: 0.27200001 | B190: 0.94650191 | C190: 1.552872236 | D190: 1.763755844e-15 | E190: 38.58165289 | O190: 0.0027200001
A191: 0.274 | B191: 0.94956195 | C191: 1.53002765 | D191: 1.743427247e-15 | E191: 38.13697066 | O191: 0.00274
A192: 0.276 | B192: 0.95261872 | C192: 1.528385 | D192: 1.747161795e-15 | E192: 38.21866282 | O192: 0.00276
A193: 0.27800001 | B193: 0.95566237 | C193: 1.521817391 | D193: 1.745212337e-15 | E193: 38.176019 | O193: 0.0027800001
A194: 0.28 | B194: 0.95870602 | C194: 1.521832609 | D194: 1.750788101e-15 | E194: 38.29798722 | O194: 0.0028
A195: 0.28200001 | B195: 0.96185565 | C195: 1.574807126 | D195: 1.817684558e-15 | E195: 39.76132803 | O195: 0.0028200001
A196: 0.28400002 | B196: 0.9650467 | C196: 1.595517022 | D196: 1.847698125e-15 | E196: 40.41786618 | O196: 0.0028400002
A197: 0.286 | B197: 0.96818995 | C197: 1.571640716 | D197: 1.825976096e-15 | E197: =D197/weight -> 39.94270304 | O197: =A197/100 -> 0.00286
A198: 0.28800001 | B198: 0.97116518 | C198: =(B198-B197)/ABS(A198-A197) -> 1.487607562 | D198: =B198*C198*0.0000000000000012 -> 1.733655199e-15 | E198: 37.92320991 | O198: 0.0028800001
A199: 0.29 | B199: 0.97414047 | C199: 1.487652438 | D199: 1.739018934e-15 | E199: 38.04054009 | O199: 0.0029
A200: 0.29200001 | B200: 0.97739804 | C200: 1.628776856 | D200: 1.910355968e-15 | E200: 41.78848853 | O200: 0.0029200001
A201: 0.29400002 | B201: 0.98077202 | C201: 1.686981565 | D201: 1.985453181e-15 | E201: 43.4312185 | O201: 0.0029400002
... 603 more rows

Sheet Sheet2
A1: Particle dynamics
A3: Sheet1 cell address that store data for F(x) dipendency
B4: Column | C4: start | D4: end
A5: x | B5: A | C5: 5 | D5: 804
A6: force | B6: D
A8: Initial values
A9: initial position x | C9: 0 | D9: [cm]
A10: velosity v | C10: 0 | D10: [сm/s]
A11: saline density | C11: 1127 | D11: kg/m3
A12: particle diametr | C12: 1e-07 | D12: m
A13: particle density | C13: 8900 | D13: kg/m3
A14: Drag coefficient (sphere) | C14: 0.47
A15: particle mass | C15: =4/3*PI()*D_*D_*D_/8*C13 -> 4.660029103e-18 | D15: kg
A16: weight | C16: =mass*9.81 -> 4.57148855e-17 | D16: N
A18: Time step | C18: 5e-05 | D18: s
A20: time | B20: position, x [m] | C20: Magnetic force [N] | D20: Drag force [N] | E20: Velosity [m/s] | F20: Acceleration [m/s/s]
A21: 5e-05 | B21: 4.527679888e-07 | C21: 8.439604893e-16 | D21: -1.705662414e-16 | E21: 0.009055359777 | F21: 181.1071955
A22: 0.00505 | B22: 0.0001009047671 | C22: 8.430036919e-16 | D22: -8.430143612e-16 | E22: 0.02013152417 | F22: -0.002289541565
A23: 0.01005 | B23: 0.0002015334824 | C23: 8.420452112e-16 | D23: -8.420558806e-16 | E23: 0.02012007646 | F23: -0.002289541561
A24: 0.01505 | B24: 0.0003021049592 | C24: 8.410872758e-16 | D24: -8.410979451e-16 | E24: 0.02010862875 | F24: -0.002289541557
A25: 0.02005 | B25: 0.0004026191975 | C25: 8.401298855e-16 | D25: -8.401405548e-16 | E25: 0.02009718104 | F25: -0.002289541553
A26: 0.02505 | B26: 0.0005030761973 | C26: 8.391730404e-16 | D26: -8.391837098e-16 | E26: 0.02008573333 | F26: -0.00228954155
A27: 0.03005 | B27: 0.0006034759585 | C27: 8.382167406e-16 | D27: -8.382274099e-16 | E27: 0.02007428563 | F27: -0.002289541546
A28: 0.03505 | B28: 0.0007038184811 | C28: 8.372609859e-16 | D28: -8.372716552e-16 | E28: 0.02006283792 | F28: -0.002289541542
A29: 0.04005 | B29: 0.0008041037653 | C29: 8.363057764e-16 | D29: -8.363164457e-16 | E29: 0.02005139021 | F29: -0.002289541538
A30: 0.04505 | B30: 0.0009043318109 | C30: 8.353511121e-16 | D30: -8.353617814e-16 | E30: 0.0200399425 | F30: -0.002289541535
A31: 0.05005 | B31: 0.001004502618 | C31: 8.34396993e-16 | D31: -8.344076623e-16 | E31: 0.0200284948 | F31: -0.002289541531
A32: 0.05505 | B32: 0.001104616186 | C32: 8.33443419e-16 | D32: -8.334540884e-16 | E32: 0.02001704709 | F32: -0.002289541527
A33: 0.06005 | B33: 0.001204672516 | C33: 8.324903903e-16 | D33: -8.325010596e-16 | E33: 0.02000559938 | F33: -0.002289541524
A34: 0.06505 | B34: 0.001304671608 | C34: 8.315379068e-16 | D34: -8.315485761e-16 | E34: 0.01999415167 | F34: -0.00228954152
A35: 0.07005 | B35: 0.001404613461 | C35: 8.305859684e-16 | D35: -8.305966378e-16 | E35: 0.01998270396 | F35: -0.002289541516
A36: 0.07505 | B36: 0.001504498075 | C36: 8.296345753e-16 | D36: -8.296452446e-16 | E36: 0.01997125626 | F36: -0.002289541512
A37: 0.08005 | B37: 0.001604325451 | C37: 8.286837273e-16 | D37: -8.286943967e-16 | E37: 0.01995980855 | F37: -0.002289541508
A38: 0.08505 | B38: 0.001704095588 | C38: 8.277334246e-16 | D38: -8.277440939e-16 | E38: 0.01994836084 | F38: -0.002289541505
A39: 0.09005 | B39: 0.001803808487 | C39: 8.26783667e-16 | D39: -8.267943363e-16 | E39: 0.01993691313 | F39: -0.002289541501
A40: 0.09505 | B40: 0.001903464147 | C40: 8.258344546e-16 | D40: -8.258451239e-16 | E40: 0.01992546543 | F40: -0.002289541497
A41: 0.10005 | B41: 0.002003062611 | C41: 8.249578844e-16 | D41: -8.249422049e-16 | E41: 0.01991456992 | F41: 0.003306673716
A42: 0.10505 | B42: 0.002102678029 | C42: 8.263552665e-16 | D42: -8.263395532e-16 | E42: 0.01993142917 | F42: 0.003371931874
A43: 0.11005 | B43: 0.002202377746 | C43: 8.277538311e-16 | D43: -8.277381178e-16 | E43: 0.01994828883 | F43: 0.003371931862
A44: 0.11505 | B44: 0.002302161761 | C44: 8.291535783e-16 | D44: -8.29137865e-16 | E44: 0.01996514849 | F44: 0.00337193185
A45: 0.12005 | B45: 0.002402030074 | C45: 8.305545079e-16 | D45: -8.305387946e-16 | E45: 0.01998200815 | F45: 0.003371931838
A46: 0.12505 | B46: 0.002501982685 | C46: 8.319566201e-16 | D46: -8.319409068e-16 | E46: 0.01999886781 | F46: 0.003371931826
A47: 0.13005 | B47: 0.002602019595 | C47: 8.333599147e-16 | D47: -8.333442014e-16 | E47: 0.02001572747 | F47: 0.003371931814
A48: 0.13505 | B48: 0.002702140803 | C48: 8.347643919e-16 | D48: -8.347486786e-16 | E48: 0.02003258713 | F48: 0.003371931802
A49: 0.14005 | B49: 0.002802346309 | C49: 8.361700516e-16 | D49: -8.361543383e-16 | E49: 0.02004944679 | F49: 0.00337193179
A50: 0.14505 | B50: 0.002902636114 | C50: 8.375768939e-16 | D50: -8.375611806e-16 | E50: 0.02006630645 | F50: 0.003371931778
A51: 0.15005 | B51: 0.003003010216 | C51: 8.389849186e-16 | D51: -8.389692053e-16 | E51: 0.0200831661 | F51: 0.003371931766
A52: 0.15505 | B52: 0.003103468618 | C52: 8.403941259e-16 | D52: -8.403784126e-16 | E52: 0.02010002576 | F52: 0.003371931755
A53: 0.16005 | B53: 0.003204011317 | C53: 8.418045156e-16 | D53: -8.417888023e-16 | E53: 0.02011688542 | F53: 0.003371931743
A54: 0.16505 | B54: 0.003304638315 | C54: 8.432160879e-16 | D54: -8.432003746e-16 | E54: 0.02013374508 | F54: 0.003371931731
A55: 0.17005 | B55: 0.003405349611 | C55: 8.446288427e-16 | D55: -8.446131294e-16 | E55: 0.02015060474 | F55: 0.003371931719
A56: 0.17505 | B56: 0.003506145205 | C56: 8.460427801e-16 | D56: -8.460270668e-16 | E56: 0.0201674644 | F56: 0.003371931707
A57: 0.18005 | B57: 0.003607025098 | C57: 8.474578999e-16 | D57: -8.474421866e-16 | E57: 0.02018432406 | F57: 0.003371931695
A58: 0.18505 | B58: 0.003707989289 | C58: 8.488742023e-16 | D58: -8.48858489e-16 | E58: 0.02020118371 | F58: 0.003371931684
A59: 0.19005 | B59: 0.003809037778 | C59: 8.502916872e-16 | D59: -8.502759739e-16 | E59: 0.02021804337 | F59: 0.003371931672
A60: 0.19505 | B60: 0.003910170565 | C60: 8.517103546e-16 | D60: -8.516946413e-16 | E60: 0.02023490303 | F60: 0.00337193166
A61: 0.20005 | B61: 0.004011387191 | C61: 8.529762274e-16 | D61: -8.529756621e-16 | E61: 0.02025011482 | F61: 0.0001212927235
A62: 0.20505 | B62: 0.004112639296 | C62: 8.530273191e-16 | D62: -8.530267539e-16 | E62: 0.02025072128 | F62: 0.0001212927233
A63: 0.21005 | B63: 0.004213894434 | C63: 8.530784123e-16 | D63: -8.530778471e-16 | E63: 0.02025132774 | F63: 0.0001212927233
A64: 0.21505 | B64: 0.004315152604 | C64: 8.531295071e-16 | D64: -8.531289419e-16 | E64: 0.02025193421 | F64: 0.0001212927234
A65: 0.22005 | B65: 0.004416413807 | C65: 8.531806034e-16 | D65: -8.531800381e-16 | E65: 0.02025254067 | F65: 0.0001212927234
A66: 0.22505 | B66: 0.004517678041 | C66: 8.532317012e-16 | D66: -8.53231136e-16 | E66: 0.02025314714 | F66: 0.0001212927233
A67: 0.23005 | B67: 0.004618945308 | C67: 8.532828006e-16 | D67: -8.532822353e-16 | E67: 0.0202537536 | F67: 0.0001212927233
A68: 0.23505 | B68: 0.004720215608 | C68: 8.533339014e-16 | D68: -8.533333362e-16 | E68: 0.02025436006 | F68: 0.0001212927233
A69: 0.24005 | B69: 0.004821488939 | C69: 8.533850039e-16 | D69: -8.533844386e-16 | E69: 0.02025496653 | F69: 0.0001212927234
A70: 0.24505 | B70: 0.004922765303 | C70: 8.534361078e-16 | D70: -8.534355426e-16 | E70: 0.02025557299 | F70: 0.0001212927233
A71: 0.25005 | B71: 0.005024044699 | C71: 8.534872133e-16 | D71: -8.534866481e-16 | E71: 0.02025617945 | F71: 0.0001212927233
A72: 0.25505 | B72: 0.005125327128 | C72: 8.535383203e-16 | D72: -8.535377551e-16 | E72: 0.02025678592 | F72: 0.0001212927233
A73: 0.26005 | B73: 0.005226612589 | C73: 8.535894288e-16 | D73: -8.535888636e-16 | E73: 0.02025739238 | F73: 0.0001212927233
A74: 0.26505 | B74: 0.005327901082 | C74: 8.536405389e-16 | D74: -8.536399737e-16 | E74: 0.02025799884 | F74: 0.0001212927233
A75: 0.27005 | B75: 0.005429192608 | C75: 8.536916505e-16 | D75: -8.536910853e-16 | E75: 0.02025860531 | F75: 0.0001212927233
A76: 0.27505 | B76: 0.005530487166 | C76: 8.537427636e-16 | D76: -8.537421984e-16 | E76: 0.02025921177 | F76: 0.0001212927234
A77: 0.28005 | B77: 0.005631784756 | C77: 8.537938783e-16 | D77: -8.53793313e-16 | E77: 0.02025981824 | F77: 0.0001212927233
A78: 0.28505 | B78: 0.005733085378 | C78: 8.538449945e-16 | D78: -8.538444292e-16 | E78: 0.0202604247 | F78: 0.0001212927233
A79: 0.29005 | B79: 0.005834389033 | C79: 8.538961122e-16 | D79: -8.53895547e-16 | E79: 0.02026103116 | F79: 0.0001212927233
A80: 0.29505 | B80: 0.00593569572 | C80: 8.539472314e-16 | D80: -8.539466662e-16 | E80: 0.02026163763 | F80: 0.0001212927233
A81: 0.30005 | B81: 0.006037003086 | C81: 8.537737023e-16 | D81: -8.537799378e-16 | E81: 0.02025965954 | F81: -0.00133809323
A82: 0.30505 | B82: 0.00613828449 | C82: 8.532098979e-16 | D82: -8.532161334e-16 | E82: 0.02025296908 | F82: -0.001338093229
A83: 0.31005 | B83: 0.006239532442 | C83: 8.526462797e-16 | D83: -8.526525153e-16 | E83: 0.02024627861 | F83: -0.001338093229
A84: 0.31505 | B84: 0.006340746942 | C84: 8.520828477e-16 | D84: -8.520890833e-16 | E84: 0.02023958814 | F84: -0.001338093228
A85: 0.32005 | B85: 0.006441927989 | C85: 8.51519602e-16 | D85: -8.515258376e-16 | E85: 0.02023289768 | F85: -0.001338093227
A86: 0.32505 | B86: 0.006543075584 | C86: 8.509565425e-16 | D86: -8.50962778e-16 | E86: 0.02022620721 | F86: -0.001338093226
A87: 0.33005 | B87: 0.006644189727 | C87: 8.503936692e-16 | D87: -8.503999047e-16 | E87: 0.02021951675 | F87: -0.001338093226
A88: 0.33505 | B88: 0.006745270417 | C88: 8.498309821e-16 | D88: -8.498372176e-16 | E88: 0.02021282628 | F88: -0.001338093225
A89: 0.34005 | B89: 0.006846317655 | C89: 8.492684812e-16 | D89: -8.492747168e-16 | E89: 0.02020613581 | F89: -0.001338093224
A90: 0.34505 | B90: 0.00694733144 | C90: 8.487061666e-16 | D90: -8.487124021e-16 | E90: 0.02019944535 | F90: -0.001338093223
A91: 0.35005 | B91: 0.007048311774 | C91: 8.481440382e-16 | D91: -8.481502737e-16 | E91: 0.02019275488 | F91: -0.001338093223
A92: 0.35505 | B92: 0.007149258655 | C92: 8.47582096e-16 | D92: -8.475883315e-16 | E92: 0.02018606442 | F92: -0.001338093222
A93: 0.36005 | B93: 0.007250172083 | C93: 8.4702034e-16 | D93: -8.470265755e-16 | E93: 0.02017937395 | F93: -0.001338093221
A94: 0.36505 | B94: 0.00735105206 | C94: 8.464587702e-16 | D94: -8.464650058e-16 | E94: 0.02017268348 | F94: -0.00133809322
A95: 0.37005 | B95: 0.007451898584 | C95: 8.458973867e-16 | D95: -8.459036222e-16 | E95: 0.02016599302 | F95: -0.00133809322
A96: 0.37505 | B96: 0.007552711655 | C96: 8.453361893e-16 | D96: -8.453424249e-16 | E96: 0.02015930255 | F96: -0.001338093219
A97: 0.38005 | B97: 0.007653491275 | C97: 8.447751782e-16 | D97: -8.447814138e-16 | E97: 0.02015261209 | F97: -0.001338093218
A98: 0.38505 | B98: 0.007754237442 | C98: 8.442143533e-16 | D98: -8.442205889e-16 | E98: 0.02014592162 | F98: -0.001338093218
A99: 0.39005 | B99: 0.007854950156 | C99: 8.436537147e-16 | D99: -8.436599502e-16 | E99: 0.02013923115 | F99: -0.001338093217
A100: 0.39505 | B100: 0.007955629419 | C100: 8.430932622e-16 | D100: -8.430994978e-16 | E100: 0.02013254069 | F100: -0.001338093216
A101: 0.40005 | B101: 0.008056298188 | C101: 8.439393931e-16 | D101: -8.439176423e-16 | E101: 0.02014230664 | F101: 0.00466752602
A102: 0.40505 | B102: 0.008157068649 | C102: 8.458961151e-16 | D102: -8.458743643e-16 | E102: 0.02016564427 | F102: 0.004667525988
A103: 0.41005 | B103: 0.008257955798 | C103: 8.478551029e-16 | D103: -8.478333521e-16 | E103: 0.0201889819 | F103: 0.004667525957
A104: 0.41505 | B104: 0.008358959635 | C104: 8.498163565e-16 | D104: -8.497946057e-16 | E104: 0.02021231953 | F104: 0.004667525926
A105: 0.42005 | B105: 0.00846008016 | C105: 8.51779876e-16 | D105: -8.517581251e-16 | E105: 0.02023565715 | F105: 0.004667525895
A106: 0.42505 | B106: 0.008561317373 | C106: 8.537456612e-16 | D106: -8.537239104e-16 | E106: 0.02025899478 | F106: 0.004667525864
A107: 0.43005 | B107: 0.008662671275 | C107: 8.557137122e-16 | D107: -8.556919614e-16 | E107: 0.02028233241 | F107: 0.004667525833
A108: 0.43505 | B108: 0.008764141864 | C108: 8.576840291e-16 | D108: -8.576622783e-16 | E108: 0.02030567004 | F108: 0.004667525802
A109: 0.44005 | B109: 0.008865729142 | C109: 8.596566117e-16 | D109: -8.596348609e-16 | E109: 0.02032900767 | F109: 0.004667525771
A110: 0.44505 | B110: 0.008967433108 | C110: 8.616314602e-16 | D110: -8.616097094e-16 | E110: 0.0203523453 | F110: 0.004667525741
A111: 0.45005 | B111: 0.009069253762 | C111: 8.636085745e-16 | D111: -8.635868236e-16 | E111: 0.02037568293 | F111: 0.00466752571
A112: 0.45505 | B112: 0.009171191104 | C112: 8.655879545e-16 | D112: -8.655662037e-16 | E112: 0.02039902056 | F112: 0.004667525679
A113: 0.46005 | B113: 0.009273245134 | C113: 8.675696004e-16 | D113: -8.675478496e-16 | E113: 0.02042235819 | F113: 0.004667525649
A114: 0.46505 | B114: 0.009375415853 | C114: 8.695535121e-16 | D114: -8.695317613e-16 | E114: 0.02044569581 | F114: 0.004667525618
A115: 0.47005 | B115: 0.009477703259 | C115: 8.715396896e-16 | D115: -8.715179388e-16 | E115: 0.02046903344 | F115: 0.004667525588
A116: 0.47505 | B116: 0.009580107354 | C116: 8.735281329e-16 | D116: -8.73506382e-16 | E116: 0.02049237107 | F116: 0.004667525558
A117: 0.48005 | B117: 0.009682628137 | C117: 8.755188419e-16 | D117: -8.754970911e-16 | E117: 0.0205157087 | F117: 0.004667525527
A118: 0.48505 | B118: 0.009785265608 | C118: 8.775118169e-16 | D118: -8.77490066e-16 | E118: 0.02053904633 | F118: 0.004667525497
A119: 0.49005 | B119: 0.009888019767 | C119: 8.795070576e-16 | D119: -8.794853068e-16 | E119: 0.02056238395 | F119: 0.004667525467
A120: 0.49505 | B120: 0.009990890614 | C120: 8.815045641e-16 | D120: -8.814828133e-16 | E120: 0.02058572158 | F120: 0.004667525437
